bitfinex-derivatives/quotes_SOLF0:USTF0_20240904
["timestamp","ask_amount","ask_price","bid_price","bid_amount"]
[1725412044284,8.04,123.98,123.91,37.06]
[1725412044489,0.05810541,123.92,123.91,37.06]
[1725412044800,0.05810541,123.92,123.9,37.06]
[1725412044801,8.04,123.98,123.93,0.06146779]
[1725412044994,0.05728977,123.93,123.85,37.06]
[1725412045195,8.04,123.92,123.81,37.06]
[1725412045399,0.05300539,123.9,123.88,0.05146727]
[1725412045591,0.05300539,123.9,123.82,37.06]
[1725412045791,8.04,123.92,123.88,0.05830459]
[1725412045987,0.05941955,123.87,123.72,1.9496]
[1725412046196,12.0768,123.88,123.78,4.0399]
[1725412046400,0.05720344,123.84,123.81,0.05514103]
[1725412046596,0.05720344,123.84,123.74,33.10604103]
[1725412046805,8.04,123.82,123.72,37.06]
[1725412047302,8.04,123.8,123.69,37.06]
[1725412047486,8.04,123.8,123.74,37.06]
[1725412047690,8.04,123.8,123.65,37.06]
[1725412047691,8.04,123.8,123.76,37.06]
[1725412047893,8.04,123.8,123.78,37.06]
[1725412048100,37.06,123.94,123.63,1.9496]
[1725412048299,3.8102,123.95,123.83,37.06]
[1725412048597,3.8102,123.95,123.77,37.06]
[1725412048598,1.8112,123.95,123.88,37.06]
[1725412048801,37.06,124.01,123.9,37.06]
[1725412049001,37.06,124.03,123.9,37.06]
[1725412049196,37.06,124.06,123.93,37.06]
[1725412049500,0.05635542,123.97,123.94,0.05328114]
[1725412049802,0.0601725,123.97,123.94,0.05266403]
[1725412050194,0.0601725,123.97,123.95,37.06]
[1725412050396,0.0601725,123.97,123.94,0.05266403]
[1725412051108,37.06,123.96,123.81,37.06]
[1725412051302,37.06,123.93,123.77,40.99422759]
[1725412051496,38.8767,123.95,123.83,37.06]
[1725412051699,37.06,123.91,123.78,37.06]
[1725412051894,37.06,123.89,123.78,37.06]
[1725412052304,39.0231,123.94,123.8,37.06]
[1725412052603,0.05755305,123.86,123.83,0.06150534]
[1725412053004,0.05755305,123.86,123.77,37.06]
[1725412053005,8.04,123.84,123.73,37.06]
[1725412053194,8.04,123.79,123.63,1.9895]
[1725412053399,8.04,123.79,123.77,0.05316946]
[1725412053603,8.04,123.77,123.64,37.06]
[1725412053798,8.04,123.75,123.62,37.06]
[1725412054005,12.082,123.72,123.63,4.0449]
[1725412054302,8.04,123.72,123.71,37.06]
[1725412054892,8.04,123.72,123.7,0.0584679]
[1725412055097,0.05446501,123.73,123.71,37.06]
[1725412055493,0.05446501,123.73,123.7,0.0584679]
[1725412055706,0.05446501,123.73,123.71,37.06]
[1725412055905,8.04,123.77,123.71,37.06]
[1725412056213,8.04,123.82,123.76,37.06]
[1725412056504,8.04,123.82,123.74,37.06]
[1725412057100,8.04,123.81,123.79,37.06]
[1725412057307,37.06,123.97,123.8,37.06]
[1725412057499,8.04,123.96,123.86,37.06]
[1725412057806,8.04,123.93,123.86,37.06]
[1725412058203,8.04,123.93,123.83,37.06]
[1725412058411,8.04,123.93,123.86,37.06]
[1725412058710,0.05678506,123.91,123.88,0.06184929]
[1725412058905,8.04,123.94,123.85,4.0377]
[1725412059102,0.05733575,123.91,123.88,37.1116499]
[1725412059304,8.04,124.0,123.9,78.1558]
[1725412059605,8.04,124.0,123.87,37.06]
[1725412059606,45.1,124.0,123.87,37.06]
[1725412059805,8.04,123.94,123.87,37.06]
[1725412060009,8.04,123.94,123.85,37.06]
[1725412060504,0.05882954,123.91,123.88,0.06023915]
[1725412061014,0.05882954,123.91,123.89,37.06]
[1725412061310,0.03852954,123.91,123.89,37.06]
[1725412061704,8.04,123.96,123.89,37.06]
[1725412061913,8.04,123.96,123.91,29.011]
[1725412062104,12.0725,124.02,123.91,33.0464]
[1725412062305,8.04,124.02,123.97,37.06]
[1725412062507,8.04,124.02,124.0,37.06]
[1725412063007,8.04,124.14,124.0,37.11427316]
[1725412063209,8.04,124.14,124.05,41.0912]
[1725412063408,1.8775,124.15,124.07,37.06]
[1725412063606,4.0349,124.21,124.1,37.06]
[1725412063812,4.0349,124.21,124.12,37.06]
[1725412064018,8.04,124.2,124.12,37.06]
[1725412064215,8.04,124.2,124.14,37.06]
[1725412064405,0.05931318,124.18,124.15,0.06206257]
[1725412064819,8.04,124.17,124.15,0.06206257]
[1725412065206,8.04,124.17,124.07,41.0902]
[1725412065412,8.04,124.17,124.07,37.06]
[1725412065718,8.04,124.17,124.1,37.06]
[1725412065914,8.04,124.2,124.1,37.06]
[1725412066113,8.04,124.18,124.12,37.06]
[1725412066611,0.0528465,124.16,124.14,37.1118742]
[1725412066816,0.0528465,124.16,124.15,37.06]
[1725412068012,0.0528465,124.16,124.14,0.0518742]
[1725412069008,0.0528465,124.16,124.07,37.06]
[1725412069422,8.04,124.15,124.07,41.0903]
[1725412069629,45.1,124.15,124.02,37.06]
[1725412069927,8.04,124.1,124.02,37.06]
[1725412070312,8.09440805,124.1,124.07,0.05901446]
[1725412070521,8.04,124.1,124.0,41.0928]
[1725412070721,8.04,124.1,123.97,37.06]
[1725412071127,8.04,124.08,123.97,37.06]
[1725412071418,8.04,124.08,123.98,37.06]
[1725412071620,0.05909825,124.04,124.01,0.06118906]
[1725412072124,8.04,124.05,123.95,37.06]
[1725412072323,0.06031781,124.04,124.03,37.06]
[1725412072520,8.04,124.11,124.02,41.18675245]
[1725412072721,8.04,124.11,124.02,4.12675245]
[1725412072925,8.04,124.11,124.02,41.18675245]
[1725412073129,8.04,124.11,124.02,4.12675245]
[1725412073622,8.04,124.09,124.02,4.12675245]
[1725412073816,0.06074645,124.08,124.02,4.12675245]
[1725412074028,0.06074645,124.08,124.05,0.0577962]
[1725412076219,0.06074645,124.08,124.06,4.12675245]
[1725412076529,8.04,124.11,124.0,33.19554865]
[1725412076822,8.04,124.11,124.04,37.06]
[1725412077020,8.04,124.16,124.04,37.06]
[1725412077522,0.05528441,124.11,124.09,0.05339269]
[1725412077724,8.04,124.16,124.09,37.11339269]
[1725412077926,0.05938683,124.11,124.09,37.11339269]
[1725412078224,8.04,124.2,124.09,37.06]
[1725412078429,0.06110278,124.11,124.1,4.0296]
[1725412078727,8.04,124.2,124.08,37.06]
[1725412079026,8.04,124.2,124.1,37.06]
[1725412079228,8.04,124.2,124.13,0.05974]
[1725412079229,0.05498407,124.15,124.13,0.05974]
[1725412079422,589.51813197,124.95,124.13,0.05974]
[1725412079423,8.0317,124.53,124.21,4.026]
[1725412079620,37.06,124.32,124.19,37.06]
[1725412079822,37.06,124.32,124.19,37.04]
[1725412080021,3.9501,124.33,124.24,37.06]
[1725412080422,3.9501,124.33,124.14,37.06]
[1725412080423,45.1,124.32,124.21,37.06]
[1725412080625,0.05837866,124.3,124.27,0.05868379]
[1725412080929,0.05764009,124.3,124.27,0.05441758]
[1725412081330,0.05764009,124.3,124.29,37.06]
[1725412081516,8.04,124.37,124.27,37.11441758]
[1725412081920,8.04,124.37,124.27,37.06]
[1725412082131,8.04,124.37,124.25,37.06]
[1725412082320,37.06,124.33,124.22,37.06]
[1725412082517,37.06,124.31,124.3,0.05244283]
[1725412082722,40.9885616,124.33,124.2,37.06]
[1725412082934,40.9885616,124.33,123.5,38.99600547]
[1725412082935,8.04,124.26,124.02,37.06]
[1725412083229,40.9885616,124.33,124.02,37.06]
[1725412083230,8.04,124.21,124.08,37.06]
[1725412083424,8.04,124.18,124.09,4.0299]
[1725412083732,8.04,124.18,124.08,37.06]
[1725412083930,0.05129548,124.15,124.14,4.0283]
[1725412084531,0.02119548,124.15,124.14,4.0283]
[1725412084824,8.04,124.24,124.18,4.027]
[1725412085026,8.04,124.24,124.19,37.06]
[1725412085233,8.04,124.24,124.14,37.06]
[1725412085527,8.04,124.22,124.13,4.0283]
[1725412085831,8.04,124.22,124.16,37.06]
[1725412086030,8.04,124.22,124.18,37.06]
[1725412086224,0.05276976,124.19,124.18,37.06]
[1725412086731,0.05276976,124.19,124.17,0.05095729]
[1725412086925,8.04,124.25,124.17,0.05095729]
[1725412087129,0.05915115,124.19,124.17,4.027]
[1725412087330,8.04,124.25,124.17,4.027]
[1725412087530,8.04,124.25,124.2,0.05670441]
[1725412087829,0.05516212,124.22,124.13,37.06]
[1725412088031,8.04,124.2,124.09,37.06]
[1725412088230,8.04,124.16,124.06,37.06]
[1725412088637,4.02270101,124.2,123.96,37.06]
[1725412088638,8.04,124.14,124.04,37.06]
[1725412089029,8.04,124.14,124.08,0.05739307]
[1725412089030,0.05137427,124.1,124.08,0.05739307]
[1725412091439,0.05137427,124.1,124.09,29.011]
[1725412091641,0.05137427,124.1,124.09,33.0409]
[1725412092129,0.05137427,124.1,124.09,4.0299]
[1725412092336,0.05137427,124.1,124.08,0.05739307]
[1725412092835,0.05137427,124.1,123.9,37.06]
[1725412092836,8.04,124.08,123.95,4.05583396]
[1725412093040,8.04,124.08,123.9,66.4480534]
[1725412093240,8.04,124.08,124.01,37.06]
[1725412093429,8.04,124.08,124.03,37.06]
[1725412093631,8.04,124.08,124.06,37.06]
[1725412093940,8.04,124.07,124.06,41.0909]
[1725412094235,3.8728,124.15,124.06,37.06]
[1725412094440,8.04,124.24,124.12,37.06]
[1725412094636,8.04,124.19,124.09,37.06]
[1725412095230,0.05973516,124.15,124.13,0.05149006]
[1725412095435,0.02583516,124.15,124.14,41.0883]
[1725412095939,8.04,124.26,124.2,4.0262]
[1725412096133,8.04,124.26,124.17,37.06]
[1725412096531,8.04,124.22,124.03,7.61854751]
[1725412096836,37.06,124.18,124.04,7.32674091]
[1725412097027,0.05607048,124.12,124.1,0.05553059]
[1725412097442,0.05607048,124.12,124.03,3.67350667]
[1725412097443,37.06,124.11,124.03,3.67350667]
[1725412097737,37.06,124.05,124.0,4.71673214]
[1725412098038,8.04,124.0,123.98,29.433258]
[1725412098444,8.09353014,124.0,123.98,29.48923989]
[1725412098949,0.05353014,124.0,123.98,0.05598189]
[1725412099748,8.04,123.99,123.98,0.05598189]
[1725412100742,8.09353014,124.0,123.98,0.05598189]
[1725412100939,8.09353014,124.0,123.93,73.72453904]
[1725412100940,8.04,123.98,123.93,73.72453904]
[1725412101747,8.04,123.96,123.93,73.72453904]
[1725412101947,8.09571997,123.96,123.93,73.78477191]
[1725412102746,8.04,123.95,123.94,4.0348]
[1725412103048,0.05571997,123.96,123.93,73.78477191]
[1725412103443,0.05571997,123.96,123.93,0.06023287]
[1725412103841,0.05571997,123.96,123.95,4.0344]
[1725412104037,37.06,124.05,123.94,37.06]
[1725412104249,41.07435875,124.1,123.96,37.06]
[1725412104438,37.06,124.1,123.96,37.06]
[1725412104742,3.96714524,124.11,123.92,3.97763713]
[1725412104743,37.06,124.08,123.94,37.06]
[1725412105147,0.05567004,124.02,124.0,0.05447681]
[1725412105342,0.05794089,124.02,124.0,0.05169967]
[1725412106151,37.06,124.01,123.9,37.06]
[1725412106350,37.06,124.06,123.94,37.06]
[1725412106651,4.0316,124.04,123.94,37.06]
[1725412107159,4.08120149,124.08,123.94,37.06]
[1725412107448,0.05381465,124.0,123.98,0.05680587]
[1725412107644,37.06,124.08,123.96,37.06]
[1725412108048,0.05705309,124.03,124.01,0.06112135]
[1725412108243,8.076,124.05,124.01,0.06112135]
[1725412108444,0.05094692,124.03,124.01,0.06112135]
[1725412109149,8.12694692,124.03,124.01,0.06112135]
[1725412109841,8.12694692,124.03,124.02,4.0322]
[1725412110049,0.05094692,124.03,124.01,0.06112135]
[1725412110448,0.05094692,124.03,124.02,4.0322]
[1725412110651,74.17094692,124.03,123.78,8.0795]
[1725412110849,37.06,123.96,123.84,37.06]
[1725412111050,2.034,124.13,123.89,37.06]
[1725412111246,8.076,123.99,123.87,40.75927472]
[1725412111640,45.136,123.97,123.87,3.69927472]
[1725412111846,8.12788391,123.94,123.92,0.0531135]
[1725412112043,8.12788391,123.94,123.87,3.69927472]
[1725412112342,8.076,123.94,123.92,0.0597789]
[1725412112544,8.12916672,123.94,123.92,0.0597789]
[1725412112754,8.076,123.93,123.92,0.0597789]
[1725412113248,8.076,123.93,123.87,3.69927472]
[1725412113754,8.076,123.96,123.87,3.69927472]
[1725412113956,12.1102,123.96,123.9,4.0358]
[1725412114255,8.076,123.96,123.87,3.69927472]
[1725412114443,0.06112564,123.94,123.92,0.06193241]
[1725412115153,0.06112564,123.94,123.93,4.0351]
[1725412115349,8.076,123.99,123.91,37.06]
[1725412115543,37.06,124.08,123.98,4.0335]
[1725412115844,8.076,124.05,123.94,37.06]
[1725412116044,8.076,124.05,123.94,41.18007629]
[1725412116547,0.05804363,124.01,123.98,0.05164258]
[1725412116746,0.05804363,124.01,123.98,0.05216747]
[1725412116956,8.076,124.03,123.98,0.05216747]
[1725412117551,6.0124,124.15,123.98,0.05216747]
[1725412117552,8.076,124.06,123.98,0.05216747]
[1725412117864,8.076,124.06,123.96,37.06]
[1725412118157,0.05571885,124.02,124.0,0.05232701]
[1725412119351,45.19171885,124.02,124.0,0.05232701]
[1725412119559,45.19171885,124.02,123.89,37.06]
[1725412119859,8.076,123.98,123.9,3.99725477]
[1725412120156,8.076,123.98,123.91,37.06]
[1725412120358,8.076,124.03,123.92,3.95733465]
[1725412120558,8.076,124.03,123.87,3.69927472]
[1725412120559,8.076,123.98,123.87,3.69927472]
[1725412120855,37.06,123.99,123.87,3.69927472]
[1725412120856,8.076,123.95,123.9,4.036]
[1725412121064,8.076,123.95,123.87,3.69927472]
[1725412121065,0.05128372,123.94,123.91,0.05104607]
[1725412122064,8.12728372,123.94,123.91,0.05104607]
[1725412122453,12.1114,123.92,123.91,0.05104607]
[1725412122652,8.076,123.92,123.91,0.05104607]
[1725412122951,12.1114,123.92,123.91,0.05104607]
[1725412123160,8.076,123.92,123.91,0.05104607]
[1725412124158,8.076,123.92,123.91,4.08674607]
[1725412124360,8.076,123.92,123.91,0.05104607]
[1725412124656,8.12728372,123.94,123.91,0.05104607]
[1725412125957,45.136,123.92,123.91,0.05104607]
[1725412126855,8.12728372,123.94,123.91,0.05104607]
[1725412127361,37.06,124.09,123.91,0.05104607]
[1725412127362,8.076,123.98,123.91,0.05104607]
[1725412127664,8.076,123.98,123.87,37.06]
[1725412127854,8.076,123.95,123.85,37.06]
[1725412128358,0.05649691,123.91,123.89,0.05452239]
[1725412128863,8.13249691,123.91,123.89,0.05452239]
[1725412130059,0.05649691,123.91,123.89,0.05452239]
[1725412130366,8.076,123.99,123.89,0.05452239]
[1725412130574,45.136,123.98,123.86,37.06]
[1725412130869,37.06,123.95,123.83,37.06]
[1725412131068,45.136,123.95,123.83,37.06]
[1725412131258,8.076,123.92,123.87,4.0369]
[1725412131459,0.06060545,123.9,123.88,0.05490083]
[1725412132057,0.06060545,123.9,123.71,40.75784378]
[1725412132058,8.13660545,123.9,123.71,3.69784378]
[1725412132261,8.076,123.85,123.74,38.15559106]
[1725412132462,37.06,123.86,123.76,37.06]
[1725412132463,8.076,123.86,123.76,37.06]
[1725412133062,0.06050582,123.82,123.8,0.06047344]
[1725412133261,0.06050582,123.82,123.81,4.039]
[1725412133866,8.076,123.88,123.8,4.12841812]
[1725412134058,8.076,123.88,123.81,37.06]
[1725412134464,12.1115,123.92,123.85,4.0375]
[1725412134864,0.054215,123.9,123.87,0.06183413]
[1725412135266,8.076,123.89,123.87,0.06183413]
[1725412136466,0.054215,123.9,123.87,0.06183413]
[1725412136467,8.130215,123.9,123.87,0.06183413]
[1725412136968,12.166515,123.9,123.87,0.06183413]
[1725412137468,8.130215,123.9,123.87,0.06183413]
[1725412137659,1.9454,124.01,123.87,0.06183413]
[1725412137660,8.076,124.0,123.88,37.06]
[1725412137865,12.16956211,124.0,123.88,41.05829727]
[1725412138067,8.076,123.95,123.88,37.06]
[1725412138375,8.076,123.95,123.89,37.06]
[1725412138766,0.05417279,123.93,123.91,0.05923891]
[1725412139074,0.05417279,123.93,123.92,4.0354]
[1725412141071,8.076,124.0,123.91,37.06]
[1725412141272,8.076,123.98,123.89,4.12222229]
[1725412141471,8.076,123.98,123.9,4.036]
[1725412141665,8.076,123.96,123.87,3.99539869]
[1725412141872,0.05700347,123.93,123.9,0.05895616]
[1725412142670,8.13300347,123.93,123.9,0.05895616]
[1725412142870,8.076,123.89,123.77,38.15518038]
[1725412143175,4.0367,123.88,123.8,4.0393]
[1725412143379,8.076,123.87,123.75,41.07404019]
[1725412143565,8.076,123.85,123.76,1.09604804]
[1725412143763,0.05706296,123.82,123.79,0.05373906]
[1725412145366,8.13306296,123.82,123.79,0.05373906]
[1725412146268,8.13306296,123.82,123.81,4.039]
[1725412146474,8.076,123.87,123.8,37.06]
[1725412146677,2.067,123.92,123.82,37.06]
[1725412146865,8.076,123.91,123.84,37.06]
[1725412147375,0.05761978,123.89,123.86,0.05539516]
[1725412147577,0.05365876,123.89,123.86,0.05592511]
[1725412148078,8.12965876,123.89,123.86,0.05592511]
[1725412149172,8.076,123.88,123.86,0.05592511]
[1725412149770,0.05365876,123.89,123.86,0.05592511]
[1725412150182,0.05365876,123.89,123.86,4.09302511]
[1725412150476,0.05365876,123.89,123.86,0.05592511]
[1725412150781,8.076,123.88,123.81,4.0389]
[1725412151079,37.06,123.87,123.77,37.06]
[1725412151279,37.06,123.87,123.75,41.07404019]
[1725412151477,4.0379,123.85,123.75,37.06]
[1725412151679,8.076,123.84,123.75,37.06]
[1725412151978,0.05665796,123.81,123.78,0.05404172]
[1725412152679,0.05665796,123.81,123.79,4.0394]
[1725412153079,0.05665796,123.81,123.78,0.05404172]
[1725412153381,0.05665796,123.81,123.8,4.0393]
[1725412153680,0.05665796,123.81,123.8,8.11275008]
[1725412154176,0.05665796,123.81,123.8,4.0393]
[1725412154770,0.05665796,123.81,123.78,0.05404172]
[1725412155276,0.05665796,123.81,122.83,80.75180879]
[1725412155277,8.076,123.78,123.69,37.06]
[1725412155664,8.076,123.78,123.67,37.06]
[1725412155870,8.076,123.76,123.67,37.06]
[1725412156285,0.05719898,123.73,123.7,0.0565327]
[1725412158384,0.05719898,123.73,123.71,4.0421]
[1725412158679,0.05719898,123.73,123.7,0.0565327]
[1725412158877,0.05719898,123.73,123.72,4.0419]
[1725412159082,8.076,123.82,123.71,37.06]
[1725412159476,8.076,123.82,123.76,4.0404]
[1725412159679,8.076,123.82,123.66,4.13734248]
[1725412159886,8.076,123.82,123.58,8.0929]
[1725412159887,8.076,123.77,123.73,37.06]
[1725412160072,8.076,123.77,123.76,37.06]
[1725412160385,37.06,123.91,123.76,37.06]
[1725412160386,0.06206797,123.78,123.77,4.0403]
[1725412160682,0.05763342,123.79,123.76,41.10365668]
[1725412160876,0.0607436,123.79,123.78,4.04]
[1725412162372,8.076,123.88,123.83,4.0382]
[1725412162678,8.076,123.88,123.8,37.06]
[1725412163083,8.076,123.88,123.85,4.0377]
[1725412163284,2.1072,123.95,123.83,37.06]
[1725412163471,0.06031203,123.88,123.85,37.11501875]
[1725412163673,8.076,123.94,123.85,37.11289374]
[1725412163881,0.05103673,123.91,123.87,37.06]
[1725412164085,0.05103673,123.91,123.9,4.0361]
[1725412164881,0.05103673,123.91,123.88,0.0577597]
[1725412166080,0.05103673,123.91,123.9,4.0361]
[1725412166888,0.05103673,123.91,123.88,0.0577597]
[1725412168386,0.05103673,123.91,123.9,4.0361]
[1725412169491,0.05103673,123.91,123.9,41.0961]
[1725412170385,8.076,123.98,123.9,37.06]
[1725412170784,8.076,123.98,123.88,37.06]
[1725412170980,8.076,123.98,123.86,37.06]
[1725412171185,8.076,123.95,123.85,4.09393014]
[1725412171390,0.05397104,123.91,123.89,0.05801242]
[1725412171597,0.06175337,123.91,123.89,0.05801242]
[1725412171791,8.076,123.91,123.81,37.06]
[1725412172194,8.076,123.91,123.85,4.0374]
[1725412172588,8.076,123.89,123.83,4.0381]
[1725412172789,8.076,123.89,123.8,3.71088522]
[1725412172790,0.05306013,123.88,123.85,0.0596018]
[1725412172993,0.05306013,123.88,123.8,3.71088522]
[1725412172994,8.076,123.87,123.8,3.71088522]
[1725412173198,45.136,123.87,123.8,3.71088522]
[1725412173397,8.076,123.81,123.78,13.84823347]
[1725412173706,45.136,123.8,123.73,74.19964277]
[1725412174205,37.06,123.85,123.73,65.13984287]
[1725412174206,37.06,123.74,123.73,65.13984287]
[1725412174405,8.076,123.71,123.67,111.30024055]
[1725412174705,45.136,123.71,123.67,111.30024055]
[1725412175115,37.06,123.68,123.67,111.30024055]
[1725412175907,0.054387,123.69,123.67,111.30024055]
[1725412176207,4.097387,123.69,123.67,111.30024055]
[1725412177003,0.054387,123.69,123.67,111.30024055]
[1725412177402,0.054387,123.69,123.67,107.40024055]
[1725412177810,0.054387,123.69,123.66,0.06192716]
[1725412179504,0.054387,123.69,123.66,4.10552716]
[1725412179706,37.06,123.68,123.66,0.06192716]
[1725412181923,37.06,123.68,123.64,110.90755438]
[1725412182221,37.06,123.67,123.64,110.90755438]
[1725412182717,37.06,123.67,123.64,114.95205438]
[1725412183118,37.06,123.67,123.64,115.01390142]
[1725412183525,37.06,123.67,123.64,110.96940142]
[1725412183821,41.157387,123.69,123.64,110.96940142]
[1725412185326,37.114387,123.69,123.64,110.96940142]
[1725412185524,37.06,123.67,123.64,110.96940142]
[1725412186015,0.054387,123.69,123.64,110.96940142]
[1725412186016,37.114387,123.69,123.64,110.96940142]
[1725412186214,4.0837821,123.66,123.64,110.96940142]
[1725412186520,37.06,123.65,123.64,110.96940142]
[1725412186719,0.05901322,123.66,123.64,110.96940142]
[1725412187514,0.05901322,123.66,123.65,4.0442]
[1725412187916,0.05901322,123.66,123.64,110.96940142]
[1725412188616,37.06,123.65,123.61,144.87673917]
[1725412188817,37.06,123.65,123.52,3.96398859]
[1725412188818,37.06,123.62,123.52,3.96398859]
[1725412189017,37.06,123.58,123.56,144.07673918]
[1725412189213,37.06,123.58,123.56,75.36673917]
[1725412189427,37.06,123.58,123.46,29.11077143]
[1725412189624,37.06,123.52,123.46,29.11077143]
[1725412189823,0.05549992,123.56,123.53,0.05790616]
[1725412190017,4.14057371,123.59,123.46,66.17077143]
[1725412190222,4.14057371,123.59,123.55,4.0474]
[1725412190418,0.05866479,123.56,123.55,4.0474]
[1725412190828,0.05866479,123.56,123.54,4.0478]
[1725412191018,0.05866479,123.56,123.54,4.10614756]
[1725412191227,0.05866479,123.56,123.54,0.05834756]
[1725412191922,4.07052489,123.72,123.54,0.05834756]
[1725412192113,37.06,123.62,123.5,37.06]
[1725412192317,37.06,123.6,123.53,4.0482]
[1725412192521,37.06,123.63,123.52,37.06]
[1725412193023,0.05278195,123.59,123.56,0.05349641]
[1725412193222,8.0736,123.88,123.58,37.06]
[1725412193422,37.06,123.75,123.64,37.06]
[1725412193617,4.10302144,123.75,123.64,41.19134884]
[1725412193823,37.06,123.74,123.65,1.9828]
[1725412194019,37.06,123.7,123.57,37.06]
[1725412194419,0.06208345,123.65,123.62,4.09736589]
[1725412194824,0.06208345,123.65,123.62,0.05416764]
[1725412197232,0.06208345,123.65,123.62,4.09936764]
[1725412197630,37.06,123.73,123.65,4.0441]
[1725412197837,37.06,123.73,123.61,37.06]
[1725412198030,41.03716685,123.78,123.64,37.06]
[1725412198229,4.0403,123.77,123.65,2.0628]
[1725412198446,37.06,123.76,123.65,2.0628]
[1725412198628,0.05605112,123.72,123.69,0.05135682]
[1725412199835,0.05605112,123.72,123.7,4.0423]
[1725412200129,0.05605112,123.72,123.69,0.05135682]
[1725412201030,4.04559835,123.77,123.66,2.1882]
[1725412201238,37.06,123.74,123.66,2.1882]
[1725412201426,41.02594785,123.74,123.65,2.0628]
[1725412201633,37.06,123.72,123.65,2.0628]
[1725412202132,37.06,123.69,123.67,0.05705565]
[1725412202330,37.06,123.69,123.56,2.1699]
[1725412202532,37.06,123.64,123.56,2.1699]
[1725412202734,37.06,123.66,123.56,2.1699]
[1725412202924,49.14318821,123.72,123.59,37.06]
[1725412203126,12.1183,123.71,123.64,4.0445]
[1725412203325,0.05384364,123.69,123.66,0.05801644]
[1725412203529,0.05384364,123.69,123.66,0.05596453]
[1725412203530,0.0599976,123.69,123.66,0.05596453]
[1725412204226,12.1196,123.67,123.66,0.05596453]
[1725412204426,45.136,123.67,123.56,2.1699]
[1725412204727,37.06,123.64,123.56,2.1699]
[1725412204933,37.06,123.62,123.55,2.1378]
[1725412205440,37.12134903,123.6,123.57,0.05576536]
[1725412205633,45.19734903,123.6,123.57,0.05576536]
[1725412205930,12.18324903,123.6,123.57,0.05576536]
[1725412206340,8.076,123.58,123.57,0.05576536]
[1725412206734,45.136,123.58,123.5,3.98582936]
[1725412206934,8.076,123.55,123.48,2.1622]
[1725412207540,45.136,123.53,123.42,4.3967]
[1725412207737,37.06,123.49,123.42,2.1622]
[1725412207935,4.0507,123.46,123.44,0.05272902]
[1725412208146,37.11634887,123.47,123.36,4.07421437]
[1725412208437,3.96372857,123.48,123.36,37.06]
[1725412208639,37.06,123.49,123.36,37.06]
[1725412208843,37.06,123.51,123.4,37.06]
[1725412209033,0.1384,123.65,123.4,37.06]
[1725412209034,49.1843,123.53,123.45,4.0507]
[1725412209237,37.06,123.54,123.41,2.0909]
[1725412209444,0.06132915,123.5,123.48,0.05616045]
[1725412209745,0.05118855,123.5,123.48,0.06021001]
[1725412209934,0.3917,123.65,123.48,0.06021001]
[1725412210240,37.06,123.72,123.49,37.06]
[1725412210545,37.06,123.72,123.45,39.2221]
[1725412210738,41.1078,123.55,123.46,4.0502]
[1725412210934,41.1078,123.55,123.45,2.1621]
[1725412210935,41.13305871,123.55,123.45,2.1621]
[1725412211240,4.0491,123.5,123.49,0.05377548]
[1725412211435,0.06002931,123.52,123.49,0.05377548]
[1725412211740,41.1091,123.5,123.49,0.05377548]
[1725412212232,4.10882931,123.52,123.49,0.05377548]
[1725412212437,0.06002931,123.52,123.49,0.05377548]
[1725412212845,0.06002931,123.52,123.49,4.10317548]
[1725412213044,0.06002931,123.52,123.49,0.05377548]
[1725412213242,0.06002931,123.52,123.51,4.0488]